bitfinex/quotes_BTCUSD_20250408
["timestamp","ask_amount","ask_price","bid_price","bid_amount"]
[1744071695876,1.34486611,79572.0,79549.0,0.01257]
[1744071696076,0.61847485,79565.0,79549.0,0.263986]
[1744071696275,0.74786355,79565.0,79549.0,0.263986]
[1744071696436,0.74786355,79565.0,79551.0,0.25141]
[1744071696639,0.77131046,79565.0,79552.0,0.01257]
[1744071697039,0.77131046,79565.0,79553.0,0.251403]
[1744071697257,0.77131046,79565.0,79553.0,0.263972]
[1744071697471,0.77131046,79565.0,79552.0,0.01257]
[1744071697678,0.78931046,79565.0,79552.0,0.01257]
[1744071698031,0.78931046,79565.0,79549.0,0.263986]
[1744071698233,0.78931046,79565.0,79548.0,0.0129066]
[1744071698431,0.78931046,79565.0,79548.0,0.0003356]
[1744071698708,1.3891068,79565.0,79548.0,0.0003356]
[1744071699053,1.27173602,79565.0,79548.0,0.0003356]
[1744071699253,1.30638091,79565.0,79548.0,0.0003356]
[1744071699480,1.29738091,79565.0,79548.0,0.0003356]
[1744071699698,1.28838091,79565.0,79548.0,0.0003356]
[1744071699900,1.30638091,79565.0,79548.0,0.0003356]
[1744071700309,1.32014229,79565.0,79548.0,0.0003356]
[1744071700631,0.61852785,79549.0,79548.0,0.0003356]
[1744071700801,1.88875169,79549.0,79548.0,0.0003356]
[1744071701002,0.61854785,79543.0,79536.0,0.0003356]
[1744071701210,0.817807,79543.0,79536.0,0.0003356]
[1744071701428,0.78316211,79543.0,79536.0,0.0003356]
[1744071701771,0.74793655,79543.0,79536.0,0.0003356]
[1744071702082,0.4819597,79543.0,79536.0,0.0003356]
[1744071702687,0.4909597,79543.0,79536.0,0.0003356]
[1744071702873,0.51440661,79543.0,79536.0,0.0003356]
[1744071703075,0.52340661,79543.0,79536.0,0.0003356]
[1744071703279,0.53240661,79543.0,79536.0,0.0003356]
[1744071703477,0.52340661,79543.0,79536.0,0.0003356]
[1744071703677,0.66372661,79543.0,79536.0,0.0003356]
[1744071703878,0.67272661,79543.0,79536.0,0.0003356]
[1744071704649,0.82771924,79543.0,79536.0,0.0003356]
[1744071705048,0.70731379,79543.0,79536.0,0.0003356]
[1744071705249,0.57792509,79543.0,79536.0,0.0003356]
[1744071705424,0.56535409,79543.0,79536.0,0.0003356]
[1744071705629,0.56535409,79543.0,79536.0,0.2643646]
[1744071705825,0.57792509,79543.0,79536.0,0.0129076]
[1744071706226,0.23792509,79543.0,79536.0,0.2643626]
[1744071706807,0.23792509,79543.0,79536.0,0.0003356]
[1744071707308,0.23792509,79543.0,79538.0,0.012572]
[1744071707522,0.23792509,79543.0,79542.0,0.0615066]
[1744071707523,0.19976691,79543.0,79542.0,0.0615066]
[1744071708232,0.05044691,79543.0,79542.0,0.0615066]
[1744071708956,0.03244691,79543.0,79542.0,0.0615066]
[1744071709109,0.009,79543.0,79542.0,0.0615066]
[1744071709315,0.018,79543.0,79542.0,0.0615066]
[1744071709801,0.02325127,79550.0,79549.0,0.01257]
[1744071710003,0.02325127,79550.0,79549.0,0.263987]
[1744071710622,0.02325127,79550.0,79549.0,0.312587]
[1744071711028,0.03225127,79550.0,79549.0,0.312587]
[1744071711435,0.14932,79579.0,79578.0,0.012566]
[1744071711661,0.0001683,79580.0,79577.0,0.012566]
[1744071711992,0.0001683,79580.0,79578.0,0.263889]
[1744071712189,0.0001683,79580.0,79577.0,0.263894]
[1744071712556,0.0001683,79580.0,79578.0,0.012566]
[1744071712793,0.0001683,79580.0,79579.0,0.263888]
[1744071713172,0.0001683,79580.0,79579.0,0.311988]
[1744071713379,0.0091683,79580.0,79579.0,0.4413767]
[1744071713763,0.0001683,79580.0,79579.0,0.4413767]
[1744071713964,0.4118,79604.0,79603.0,0.311908]
[1744071714165,0.11115682,79605.0,79604.0,0.012562]
[1744071715796,0.14932,79616.0,79612.0,0.01256]
[1744071716108,0.14932,79616.0,79614.0,0.26377]
[1744071716667,0.14932,79616.0,79614.0,0.01256]
[1744071717019,0.006,79616.0,79614.0,0.263772]
[1744071717192,0.006,79616.0,79615.0,0.01256]
[1744071718389,0.015,79616.0,79615.0,0.01256]
[1744071718595,0.009,79616.0,79615.0,0.01256]
[1744071719023,0.027,79616.0,79615.0,0.01256]
[1744071719316,0.027,79616.0,79615.0,0.06066]
[1744071719510,0.018,79616.0,79615.0,0.06066]
[1744071719931,0.027,79616.0,79615.0,0.06166]
[1744071720108,0.009,79616.0,79615.0,0.06166]
[1744071720309,0.002,79619.0,79618.0,0.012559]
[1744071721058,0.009,79616.0,79615.0,0.06066]
[1744071721279,0.07415797,79624.0,79616.0,0.251205]
[1744071721609,0.009,79619.0,79615.0,0.06066]
[1744071721818,0.02156,79616.0,79615.0,0.001]
[1744071722014,0.16548955,79616.0,79615.0,0.001]
[1744071722219,0.012561,79606.0,79605.0,0.0481]
[1744071722428,0.012561,79607.0,79605.0,0.0481]
[1744071722825,0.263796,79607.0,79605.0,0.0481]
[1744071723031,0.01256,79612.0,79606.0,0.012561]
[1744071723227,0.012561,79610.0,79605.0,0.0481]
[1744071723434,0.001,79606.0,79605.0,0.0571]
[1744071724274,0.001,79606.0,79605.0,0.069662]
[1744071724767,0.001,79606.0,79605.0,0.076662]
[1744071725383,0.013561,79610.0,79605.0,0.076662]
[1744071725581,0.001,79610.0,79605.0,0.327899]
[1744071725734,0.001,79610.0,79607.0,0.251234]
[1744071725941,0.001,79610.0,79609.0,0.251227]
[1744071726136,0.001,79610.0,79609.0,0.012561]
[1744071726337,0.001,79610.0,79608.0,0.012561]
[1744071726519,0.001,79610.0,79607.0,0.263795]
[1744071726723,0.01256,79613.0,79605.0,0.085662]
[1744071726724,0.263788,79609.0,79605.0,0.0571]
[1744071726931,0.012561,79607.0,79605.0,0.0481]
[1744071727239,0.012561,79606.0,79605.0,0.0481]
[1744071727479,0.263795,79607.0,79605.0,0.0481]
[1744071727678,0.01,79610.0,79605.0,0.0481]
[1744071727878,0.009,79610.0,79606.0,0.012561]
[1744071728098,0.263788,79609.0,79605.0,0.0481]
[1744071728275,0.012561,79606.0,79605.0,0.0571]
[1744071728496,0.012561,79606.0,79605.0,0.0481]
[1744071728870,0.012561,79606.0,79605.0,0.0641]
[1744071729425,0.012561,79606.0,79605.0,0.0551]
[1744071729784,0.013561,79606.0,79605.0,0.0641]
[1744071729983,0.001,79606.0,79605.0,0.0571]
[1744071730387,0.001,79606.0,79605.0,0.0661]
[1744071730388,0.002,79606.0,79605.0,0.0661]
[1744071730724,0.002,79606.0,79605.0,0.078662]
[1744071730885,0.014561,79606.0,79605.0,0.0661]
[1744071731086,0.014561,79606.0,79605.0,0.018]
[1744071732235,0.002,79606.0,79605.0,0.26924]
[1744071732447,0.002,79606.0,79605.0,0.281802]
[1744071733003,0.002,79606.0,79605.0,0.329302]
[1744071733457,0.002,79606.0,79605.0,0.0655]
[1744071733658,0.014561,79606.0,79605.0,0.018]
[1744071734092,0.002,79606.0,79605.0,0.018]
[1744071734674,0.002,79606.0,79605.0,0.26924]
[1744071734892,0.002,79606.0,79605.0,0.281802]
[1744071736982,0.002,79606.0,79605.0,0.018]
[1744071736983,0.265798,79606.0,79605.0,0.018]
[1744071738175,0.264798,79606.0,79605.0,0.009]
[1744071738373,0.263809,79603.0,79597.0,0.012563]
[1744071738776,0.012562,79603.0,79598.0,0.251259]
[1744071738985,0.25124,79605.0,79598.0,0.263822]
[1744071739191,0.25124,79605.0,79599.0,0.012562]
[1744071739398,0.009,79603.0,79599.0,0.012562]
[1744071739597,0.009,79603.0,79598.0,0.251259]
[1744071739792,0.009,79603.0,79599.0,0.263818]
[1744071740426,0.009,79603.0,79601.0,0.012562]
[1744071740631,0.009,79603.0,79599.0,0.263818]
[1744071740777,0.021562,79603.0,79598.0,0.002]
[1744071740981,0.009,79603.0,79599.0,0.263821]
[1744071741855,0.281809,79603.0,79599.0,0.001]
[1744071742042,0.012562,79600.0,79599.0,0.001]
[1744071742840,0.012562,79600.0,79599.0,0.002]
[1744071743043,0.012562,79600.0,79599.0,0.001]
[1744071744175,0.263821,79599.0,79593.0,0.251278]
[1744071744382,0.263821,79599.0,79593.0,0.263841]
[1744071744754,0.251265,79597.0,79592.0,0.012564]
[1744071744963,0.012563,79598.0,79592.0,0.012564]
[1744071745162,0.012563,79598.0,79593.0,0.263838]
[1744071745368,0.009,79600.0,79597.0,0.012563]
[1744071745582,0.263812,79602.0,79597.0,0.263825]
[1744071745744,0.263818,79601.0,79595.0,0.012563]
[1744071745939,0.251265,79597.0,79593.0,0.001]
[1744071746149,0.251265,79597.0,79593.0,0.252278]
[1744071746343,0.012563,79598.0,79593.0,0.264841]
[1744071746568,0.021562,79599.0,79594.0,0.263835]
[1744071746769,0.009,79599.0,79598.0,0.251262]
[1744071746979,0.018,79599.0,79598.0,0.263825]
[1744071747314,0.012562,79603.0,79598.0,0.263825]
[1744071747535,0.009,79602.0,79598.0,0.263825]
[1744071747861,0.40064,79605.0,79600.0,0.263818]
[1744071748063,0.1494,79605.0,79602.0,0.251249]
[1744071748271,0.009,79599.0,79598.0,0.264825]
[1744071748686,0.1494,79605.0,79602.0,0.263809]
[1744071749097,0.1584,79605.0,79602.0,0.263809]
[1744071749629,0.263812,79602.0,79600.0,0.001]
[1744071749773,0.012562,79603.0,79600.0,0.001]
[1744071749973,0.1584,79605.0,79604.0,0.251243]
[1744071750418,0.1674,79605.0,79602.0,0.001]
[1744071750956,0.012562,79603.0,79602.0,0.001]
[1744071751130,0.021562,79603.0,79602.0,0.002]
[1744071752029,0.021562,79603.0,79602.0,0.001]
[1744071752233,0.030562,79603.0,79602.0,0.002]
[1744071752729,0.021562,79603.0,79602.0,0.001]
[1744071754065,0.009,79603.0,79602.0,0.001]
[1744071754269,0.018,79603.0,79602.0,0.063962]
[1744071754408,0.018,79603.0,79602.0,0.315211]
[1744071755011,0.018,79603.0,79602.0,0.0514]
[1744071755239,0.030562,79603.0,79602.0,0.002]
[1744071755954,0.1599507,79603.0,79602.0,0.002]
[1744071756659,0.018,79603.0,79602.0,0.002]
[1744071757279,0.4111967,79603.0,79602.0,0.002]
[1744071759151,0.018,79603.0,79602.0,0.002]
[1744071759358,0.018,79603.0,79602.0,0.253249]
[1744071759564,0.012564,79591.0,79581.0,0.092]
[1744071759729,0.012563,79597.0,79585.0,0.012565]
[1744071759933,0.4118,79599.0,79585.0,0.012565]
[1744071759934,0.4118,79599.0,79593.0,0.0455]
[1744071760127,0.018,79603.0,79599.0,0.251259]
[1744071760384,0.009,79603.0,79600.0,0.263815]
[1744071760735,0.021562,79603.0,79596.0,0.251266]
[1744071760956,0.012562,79603.0,79596.0,0.251266]
[1744071761372,0.012562,79602.0,79596.0,0.263829]
[1744071761557,0.012562,79604.0,79599.0,0.251259]
[1744071761763,0.012562,79603.0,79597.0,0.251262]
[1744071761957,0.009,79603.0,79599.0,0.012562]
[1744071762157,0.009,79603.0,79601.0,0.012562]
[1744071762565,0.009,79603.0,79601.0,0.263812]
[1744071762976,0.018,79603.0,79601.0,0.263812]
[1744071763376,0.009,79603.0,79602.0,0.012562]
[1744071763795,0.018,79603.0,79602.0,0.012562]
[1744071764392,0.027,79603.0,79602.0,0.013562]
[1744071764938,0.009,79603.0,79602.0,0.108962]
[1744071768075,0.009,79603.0,79602.0,0.0465]
[1744071768294,0.009,79603.0,79602.0,0.001]
[1744071768484,0.009,79603.0,79602.0,0.264811]
[1744071770208,0.009,79603.0,79602.0,0.310711]
[1744071770397,0.009,79603.0,79602.0,0.359811]
[1744071771033,0.25488469,79617.0,79616.0,0.263765]
[1744071771214,0.11115682,79626.0,79623.0,0.26374]
[1744071771367,0.11115682,79626.0,79622.0,0.251186]
[1744071771567,0.13234076,79626.0,79622.0,0.251186]
[1744071771910,0.251205,79616.0,79608.0,0.012561]
[1744071772070,0.251205,79616.0,79609.0,0.263788]
[1744071772679,0.01256,79617.0,79612.0,0.01256]
[1744071773425,0.012559,79619.0,79613.0,0.263775]
[1744071773626,0.009,79616.0,79612.0,0.01256]
[1744071773843,0.01256,79613.0,79609.0,0.001]
[1744071774269,0.263778,79613.0,79612.0,0.001]
[1744071774476,0.263778,79613.0,79607.0,0.012561]
[1744071774668,0.263778,79613.0,79612.0,0.001]
[1744071774871,0.3931667,79613.0,79612.0,0.001]
[1744071775073,0.26379,79609.0,79600.0,0.251253]
[1744071775237,0.26379,79609.0,79602.0,0.012562]
[1744071775421,0.01256,79616.0,79611.0,0.012561]
[1744071775615,0.01256,79615.0,79610.0,0.012561]
[1744071776129,0.01256,79614.0,79609.0,0.251227]
[1744071776329,0.263775,79614.0,79609.0,0.251227]
[1744071776573,0.01256,79615.0,79610.0,0.012561]
[1744071776774,0.009,79613.0,79612.0,0.001]
[1744071776933,0.018,79613.0,79612.0,0.01456]
[1744071777134,0.018,79613.0,79612.0,0.06406]
[1744071777439,0.009,79613.0,79612.0,0.0505]
[1744071777652,0.018,79614.0,79612.0,0.0495]
[1744071777863,0.269212,79614.0,79609.0,0.253227]
[1744071778059,0.018,79614.0,79611.0,0.251221]
[1744071778259,0.009,79614.0,79611.0,0.263782]
[1744071778459,0.009,79613.0,79612.0,0.001]
[1744071778975,0.009,79613.0,79612.0,0.264778]
[1744071779569,0.018,79613.0,79612.0,0.265778]
[1744071780640,0.009,79613.0,79612.0,0.264778]
[1744071781768,0.018,79613.0,79612.0,0.265778]
[1744071783913,0.281775,79613.0,79612.0,0.002]
[1744071787725,0.4111637,79613.0,79612.0,0.002]
[1744071790372,1.2980732,79613.0,79612.0,0.002]
[1744071790750,0.012565,79583.0,79576.0,0.251329]
[1744071790957,0.012565,79583.0,79581.0,0.0469]
[1744071791556,0.012565,79586.0,79581.0,0.0469]
[1744071791702,0.012565,79586.0,79581.0,0.298216]
[1744071791899,0.03526786,79585.0,79583.0,0.263874]
[1744071792516,0.01175588,79584.0,79583.0,0.012565]
[1744071792787,0.03526786,79584.0,79583.0,0.012565]
[1744071792966,0.03526786,79584.0,79583.0,0.263874]
[1744071793435,0.05625636,79584.0,79583.0,0.263874]
[1744071793767,0.03274438,79584.0,79583.0,0.263874]
[1744071793983,0.04174438,79584.0,79583.0,0.263874]
[1744071794173,0.04174438,79584.0,79583.0,0.012565]
[1744071794377,0.04174438,79584.0,79581.0,0.298216]
[1744071794730,0.04174438,79584.0,79583.0,0.263874]
[1744071795097,0.05074438,79584.0,79583.0,0.263874]
[1744071795515,0.04174438,79584.0,79583.0,0.263874]
[1744071795720,0.0652251,79584.0,79583.0,0.263874]
[1744071795923,0.0662251,79584.0,79583.0,0.263874]
[1744071796119,0.0652251,79584.0,79583.0,0.263874]
[1744071796528,0.0742251,79584.0,79583.0,0.263874]
[1744071796752,0.05074438,79584.0,79583.0,0.263874]
[1744071797294,0.05074438,79584.0,79582.0,0.012565]
[1744071797489,0.01175588,79583.0,79582.0,0.012565]
[1744071799981,0.01275588,79583.0,79582.0,0.012565]
[1744071800808,0.01375588,79583.0,79582.0,0.012565]
[1744071800936,0.002,79583.0,79582.0,0.012565]
[1744071803717,0.012563,79594.0,79588.0,0.263855]
[1744071803939,0.263841,79594.0,79588.0,0.263855]
[1744071804249,0.0234733,79593.0,79588.0,0.263855]
[1744071804613,0.03521043,79592.0,79589.0,0.012564]
[1744071805036,0.03521043,79592.0,79590.0,0.251287]
[1744071805241,0.03521043,79592.0,79590.0,0.263851]
[1744071805458,0.03521043,79591.0,79590.0,0.263851]
[1744071805750,0.0564529,79591.0,79590.0,0.263851]
[1744071806083,0.0564529,79591.0,79588.0,0.263855]
[1744071806288,0.26302413,79590.0,79583.0,0.251309]
[1744071806437,0.26302413,79590.0,79581.0,0.059465]
[1744071806438,0.0234733,79589.0,79587.0,0.263861]
[1744071806637,0.0234733,79589.0,79588.0,0.263858]
[1744071807603,0.04421043,79589.0,79588.0,0.263858]
[1744071808031,0.03521043,79589.0,79588.0,0.263858]
[1744071808493,0.04421043,79589.0,79588.0,0.263858]
[1744071809095,0.05321043,79589.0,79588.0,0.263858]
[1744071809595,0.251306,79584.0,79577.0,0.251325]
[1744071809739,0.263871,79584.0,79579.0,0.012566]
[1744071809953,0.0234733,79583.0,79579.0,0.263886]
[1744071810152,0.0234733,79583.0,79580.0,0.263881]
[1744071810355,0.251319,79581.0,79575.0,0.299132]
[1744071810572,0.251306,79585.0,79580.0,0.012565]
[1744071810773,0.01273713,79584.0,79579.0,0.264886]
[1744071811012,0.263877,79583.0,79579.0,0.001]
[1744071811327,0.263877,79583.0,79576.0,0.012566]
[1744071811534,0.012565,79582.0,79575.0,0.311699]
[1744071811847,0.01273713,79581.0,79575.0,0.0488]
[1744071811995,0.01273713,79581.0,79575.0,0.312698]
[1744071812198,0.263884,79580.0,79575.0,0.0488]
[1744071812420,0.263891,79579.0,79575.0,0.0488]
[1744071813354,0.012566,79579.0,79575.0,0.0478]
[1744071813528,0.012566,79579.0,79575.0,0.0488]
[1744071813751,0.264884,79580.0,79575.0,0.0488]
[1744071814058,0.013565,79580.0,79575.0,0.060366]
[1744071814253,0.001,79580.0,79575.0,0.311698]
[1744071814580,0.001,79579.0,79576.0,0.263895]
[1744071814739,0.001,79579.0,79575.0,0.061366]
[1744071814939,0.001,79580.0,79577.0,0.251328]
[1744071815135,0.001,79580.0,79576.0,0.263898]
[1744071815344,0.001,79580.0,79577.0,0.263892]
[1744071815553,0.251315,79582.0,79577.0,0.012566]
[1744071815760,0.251319,79580.0,79575.0,0.060366]
[1744071816040,0.001,79579.0,79575.0,0.0478]
[1744071816236,0.001,79579.0,79575.0,0.0488]
[1744071816638,0.263898,79576.0,79575.0,0.0488]
[1744071816827,0.263904,79574.0,79573.0,0.0003362]
[1744071817028,0.251338,79574.0,79573.0,0.0003362]
[1744071817452,0.264891,79579.0,79573.0,0.0003362]
[1744071817843,0.263894,79578.0,79573.0,0.0003362]
[1744071818057,0.009,79574.0,79573.0,0.0003362]
[1744071819200,0.02076424,79574.0,79573.0,0.0003362]
[1744071819409,0.01176424,79574.0,79573.0,0.0003362]
[1744071820012,0.02076424,79574.0,79573.0,0.0129032]
[1744071820715,0.02976424,79574.0,79573.0,0.0129032]
[1744071823706,0.02976424,79574.0,79573.0,0.0003362]
[1744071824358,0.28110224,79574.0,79573.0,0.0003362]
[1744071824618,0.29366824,79574.0,79573.0,0.0003362]
[1744071824928,0.02976424,79574.0,79573.0,0.0003362]
[1744071826712,0.05330263,79574.0,79573.0,0.0003362]
[1744071830312,0.47905789,79574.0,79573.0,0.0003362]
[1744071830550,0.40586863,79574.0,79573.0,0.0003362]
[1744071830928,0.44300714,79574.0,79573.0,0.0003362]
[1744071831644,0.012567,79572.0,79571.0,0.002]
[1744071831843,0.5537557,79572.0,79571.0,0.002]
[1744071832046,0.60544065,79572.0,79571.0,0.002]
[1744071832351,0.95371934,79572.0,79571.0,0.002]
[1744071832581,0.99279253,79572.0,79571.0,0.002]
[1744071833292,0.82226298,79572.0,79571.0,0.002]
[1744071834294,0.78513124,79572.0,79571.0,0.002]
[1744071836199,0.93437124,79572.0,79571.0,0.002]
[1744071836403,1.06375994,79572.0,79571.0,0.002]
[1744071836583,1.11480049,79572.0,79571.0,0.002]
[1744071836946,1.07275994,79572.0,79571.0,0.002]
[1744071837153,0.93080424,79572.0,79571.0,0.002]
[1744071837389,0.94337124,79572.0,79571.0,0.002]
[1744071837568,0.79413124,79572.0,79571.0,0.002]
[1744071837766,0.02976424,79572.0,79571.0,0.002]
[1744071838007,0.38233124,79572.0,79571.0,0.002]
[1744071838971,0.48454706,79572.0,79571.0,0.002]
[1744071839169,0.38233124,79572.0,79571.0,0.002]
[1744071840864,0.02976424,79572.0,79571.0,0.0507]
[1744071841103,0.04233124,79572.0,79571.0,0.002]
[1744071843175,0.030567,79572.0,79571.0,0.002]
[1744071845804,0.030567,79572.0,79571.0,0.014567]
[1744071845805,0.018,79572.0,79571.0,0.014567]
[1744071845939,0.018,79572.0,79571.0,0.002]
[1744071846589,0.030567,79572.0,79571.0,0.002]
[1744071847950,0.0540784,79572.0,79571.0,0.002]
[1744071849093,0.06583529,79572.0,79571.0,0.002]
[1744071849905,0.0540784,79572.0,79571.0,0.002]
[1744071850108,0.0415114,79572.0,79571.0,0.002]
[1744071850307,0.0415114,79572.0,79571.0,0.311314]
[1744071851636,0.0415114,79572.0,79571.0,0.360614]
[1744071852001,0.05327242,79572.0,79571.0,0.360614]
[1744071852407,0.05683942,79572.0,79571.0,0.002]
[1744071852723,0.012567,79572.0,79571.0,0.002]
[1744071853141,0.021567,79572.0,79571.0,0.002]
[1744071854441,0.030567,79572.0,79571.0,0.002]
[1744071854785,0.04233302,79572.0,79571.0,0.002]
[1744071855089,0.06586506,79572.0,79571.0,0.002]
[1744071855623,0.40586506,79572.0,79571.0,0.002]
[1744071855861,0.52436667,79572.0,79571.0,0.002]
[1744071856066,0.263936,79565.0,79557.0,0.30936]
[1744071856273,0.02433402,79564.0,79557.0,0.30936]
[1744071856469,0.012569,79559.0,79557.0,0.0454]
[1744071856727,0.012569,79558.0,79557.0,0.0454]
[1744071857077,0.03610104,79558.0,79557.0,0.0454]
[1744071857535,0.01257,79552.0,79551.0,0.0457364]
[1744071857712,0.01257,79552.0,79551.0,0.0003364]
[1744071858031,0.02433602,79552.0,79551.0,0.0003364]
[1744071858247,0.04786806,79552.0,79551.0,0.0003364]
[1744071858816,0.05686806,79552.0,79551.0,0.0003364]
[1744071859023,0.20606806,79552.0,79551.0,0.0003364]
[1744071859436,0.21506806,79552.0,79551.0,0.0003364]
[1744071860202,0.20606806,79552.0,79551.0,0.0003364]
[1744071860645,0.19706806,79552.0,79551.0,0.0003364]
[1744071861049,0.20606806,79552.0,79551.0,0.0003364]
[1744071861363,0.23266652,79552.0,79551.0,0.0003364]
[1744071861508,0.22009652,79552.0,79551.0,0.0003364]
[1744071861708,0.07089652,79552.0,79551.0,0.0003364]
[1744071862039,0.09246652,79552.0,79551.0,0.0003364]
[1744071862896,0.19582277,79552.0,79551.0,0.0003364]
[1744071863074,0.09246652,79552.0,79551.0,0.0003364]
[1744071864006,0.02976602,79552.0,79551.0,0.3124174]
[1744071864205,0.018,79552.0,79551.0,0.4899061]
[1744071865369,0.11115682,79563.0,79562.0,0.263944]
[1744071865582,0.02591827,79569.0,79566.0,0.012568]
[1744071866154,0.02591827,79569.0,79564.0,0.263937]
[1744071866356,0.251385,79559.0,79552.0,0.263977]
[1744071866561,0.251385,79559.0,79553.0,0.01257]
[1744071867006,0.263949,79561.0,79554.0,0.263971]
[1744071867208,0.009,79563.0,79560.0,0.012569]
[1744071867412,0.009,79563.0,79562.0,0.012568]
[1744071867613,0.50988469,79567.0,79566.0,0.012568]
[1744071868576,0.50988469,79567.0,79566.0,0.263931]
[1744071868781,0.52788469,79567.0,79563.0,0.263941]
[1744071869113,0.51888469,79567.0,79563.0,0.263941]
[1744071869290,0.52788469,79567.0,79563.0,0.263941]
[1744071869613,0.018,79567.0,79563.0,0.263941]
[1744071869915,0.027,79567.0,79563.0,0.263941]
[1744071870061,0.290929,79567.0,79561.0,0.060668]
[1744071870457,0.012568,79566.0,79561.0,0.060668]
[1744071870737,0.251373,79563.0,79561.0,0.0481]
[1744071870896,0.263941,79563.0,79561.0,0.0481]
[1744071871097,0.012569,79557.0,79552.0,0.0455]
[1744071871303,0.012569,79555.0,79552.0,0.0455]
[1744071871504,0.263971,79554.0,79552.0,0.0455]
[1744071871705,0.263971,79554.0,79551.0,0.0003364]
[1744071871998,0.01174966,79553.0,79551.0,0.0003364]
[1744071872587,0.01174966,79553.0,79552.0,0.002]
[1744071872993,0.01174966,79553.0,79552.0,0.01357]
[1744071873192,0.01274966,79553.0,79552.0,0.264977]
[1744071873411,0.01274966,79553.0,79552.0,0.310477]
[1744071873737,0.01274966,79553.0,79552.0,0.309477]
[1744071874108,0.01374966,79553.0,79552.0,0.309477]
[1744071874307,0.002,79553.0,79552.0,0.4853657]
[1744071874549,0.001,79553.0,79552.0,0.4853657]
[1744071874931,0.011,79553.0,79552.0,0.4863657]
[1744071875131,0.001,79553.0,79552.0,0.4863657]
[1744071875767,0.001,79553.0,79552.0,0.4398657]
[1744071875969,0.001,79553.0,79552.0,0.0465]
[1744071876125,0.002,79553.0,79552.0,0.0475]
[1744071876527,0.002,79553.0,79552.0,0.002]
[1744071876766,0.002,79553.0,79552.0,0.001]
[1744071876971,0.001,79553.0,79552.0,0.01357]
[1744071877172,0.01,79553.0,79552.0,0.01357]
[1744071877548,0.01,79553.0,79552.0,0.14547272]
[1744071877756,0.01,79553.0,79552.0,0.1429587]
[1744071877956,0.009,79553.0,79552.0,0.1891587]
[1744071878367,0.018,79553.0,79552.0,0.1891587]
[1744071880074,0.018,79553.0,79552.0,0.05977]
[1744071880679,0.02975213,79553.0,79552.0,0.05977]
[1744071881118,0.04232213,79553.0,79552.0,0.0472]
[1744071881338,0.01257,79552.0,79551.0,0.0003364]
[1744071881937,0.02975213,79553.0,79551.0,0.0003364]
[1744071882495,0.01175213,79552.0,79551.0,0.0003364]
[1744071883034,0.27215913,79552.0,79551.0,0.0003364]
[1744071883217,0.03332213,79552.0,79551.0,0.0003364]
[1744071883415,0.02975213,79552.0,79551.0,0.0003364]
[1744071884141,0.28115913,79552.0,79551.0,0.0003364]
[1744071884316,0.04232213,79552.0,79551.0,0.0003364]
[1744071884520,0.32812934,79552.0,79551.0,0.0003364]
[1744071884902,0.35164781,79552.0,79551.0,0.0003364]
[1744071885109,0.82103651,79552.0,79551.0,0.0003364]
[1744071885296,0.85663651,79552.0,79551.0,0.0003364]
[1744071885692,0.35257,79551.0,79550.0,0.0003364]
[1744071885891,0.55713812,79551.0,79550.0,0.0003364]
[1744071886102,1.00885067,79551.0,79550.0,0.0003364]
[1744071886655,1.0206028,79551.0,79550.0,0.0003364]
[1744071886858,0.98069025,79551.0,79550.0,0.0003364]
[1744071887579,0.98969025,79551.0,79550.0,0.0003364]
[1744071887887,0.99869025,79551.0,79550.0,0.0003364]
[1744071888042,0.97517178,79551.0,79550.0,0.0003364]
[1744071888444,1.02287178,79551.0,79550.0,0.0003364]
[1744071888646,1.15227723,79551.0,79550.0,0.0003364]
[1744071889234,0.603997,79546.0,79545.0,0.0003364]
[1744071889433,0.36711185,79542.0,79541.0,4e-07]
[1744071889638,1.8570061,79542.0,79541.0,4e-07]
[1744071890292,1.86875823,79542.0,79541.0,4e-07]
[1744071891279,0.408172,79540.0,79539.0,6e-07]
[1744071891594,0.58922165,79540.0,79539.0,6e-07]
[1744071892140,0.57876298,79540.0,79539.0,6e-07]
[1744071892346,0.54537378,79540.0,79539.0,6e-07]
[1744071892564,0.50825368,79540.0,79539.0,6e-07]
[1744071892926,0.51725368,79540.0,79539.0,6e-07]
[1744071893476,0.1293887,79540.0,79539.0,6e-07]
[1744071893669,0.1419607,79540.0,79539.0,6e-07]
[1744071893826,0.1509607,79540.0,79539.0,6e-07]
[1744071894476,0.179772,79540.0,79539.0,6e-07]
[1744071895037,0.188772,79540.0,79539.0,6e-07]
[1744071897096,0.188812,79540.0,79539.0,6e-07]
[1744071897454,0.600612,79540.0,79539.0,6e-07]
[1744071897995,0.7300007,79540.0,79539.0,6e-07]
[1744071898171,1.08454155,79540.0,79539.0,6e-07]
[1744071901288,0.940612,79540.0,79539.0,6e-07]
[1744071901499,1.45049669,79540.0,79539.0,6e-07]
[1744071901697,1.59442624,79540.0,79539.0,6e-07]
[1744071902992,1.58542624,79540.0,79539.0,6e-07]
[1744071903287,1.58542624,79540.0,79539.0,0.0010006]
[1744071903497,1.59442624,79540.0,79539.0,0.0010006]
[1744071904498,1.57642624,79540.0,79539.0,0.0010006]
[1744071904674,1.70583169,79540.0,79539.0,0.0010006]
[1744071904887,1.59465806,79540.0,79539.0,0.0010006]
[1744071905716,1.58542624,79540.0,79539.0,0.0010006]
[1744071906243,0.604027,79537.0,79536.0,2e-07]
[1744071906430,1.74459655,79537.0,79536.0,2e-07]
[1744071906829,0.264104,79514.0,79509.0,0.0491]
[1744071907130,0.26411,79512.0,79509.0,0.0491]
[1744071907676,0.26411,79512.0,79507.0,0.0003364]
[1744071909020,0.27311,79512.0,79507.0,0.0003364]
[1744071909458,0.27311,79512.0,79511.0,0.003]